[Event "Late-Titled-Tuesday-Blitz-July-09-2024"]
[Site "Chess.com"]
[Date "2024.07.09"]
[Round "3"]
[White "Bob_2004"]
[Black "Kirill_Klukin"]
[Result "0-1"]
[WhiteElo "2700"]
[BlackElo "2940"]
[TimeControl "180+1"]
[EndTime "14:28:30 PDT"]
[Termination "Kirill_Klukin won by resignation"]

1. d4 {[%clk 0:03:00.9]} 1... Nf6 {[%clk 0:02:57.6]} 2. c4 {[%clk 0:03:00.9]}
2... Nc6 {[%clk 0:02:58]} 3. Nc3 {[%clk 0:02:55.3]} 3... e6 {[%clk 0:02:57.7]}
4. a3 {[%clk 0:02:53.3]} 4... d6 {[%clk 0:02:57.8]} 5. Nf3 {[%clk 0:02:52]} 5...
g6 {[%clk 0:02:57.9]} 6. Bg5 {[%clk 0:02:48.3]} 6... Bg7 {[%clk 0:02:57.7]} 7.
e3 {[%clk 0:02:47.7]} 7... O-O {[%clk 0:02:56.3]} 8. Be2 {[%clk 0:02:47.1]} 8...
b6 {[%clk 0:02:47.1]} 9. O-O {[%clk 0:02:46.6]} 9... Bb7 {[%clk 0:02:46.6]} 10.
Qc2 {[%clk 0:02:46.2]} 10... Ne7 {[%clk 0:02:33.2]} 11. Rac1 {[%clk 0:02:39]}
11... h6 {[%clk 0:02:32.5]} 12. Bh4 {[%clk 0:02:38.3]} 12... Nf5 {[%clk
0:02:31.6]} 13. Bxf6 {[%clk 0:02:35.4]} 13... Qxf6 {[%clk 0:02:29.4]} 14. Rfd1
{[%clk 0:02:33.7]} 14... Nh4 {[%clk 0:02:17.3]} 15. Ne4 {[%clk 0:02:32]} 15...
Qe7 {[%clk 0:02:10.3]} 16. c5 {[%clk 0:02:23.2]} 16... bxc5 {[%clk 0:01:24.9]}
17. dxc5 {[%clk 0:02:12.1]} 17... Bxe4 {[%clk 0:01:15.4]} 18. Qxe4 {[%clk
0:02:10.2]} 18... Nxf3+ {[%clk 0:01:15.9]} 19. Bxf3 {[%clk 0:02:06.7]} 19...
Bxb2 {[%clk 0:01:16.5]} 20. Rb1 {[%clk 0:01:47.5]} 20... Rab8 {[%clk 0:01:16.3]}
21. Qa4 {[%clk 0:01:42.8]} 21... d5 {[%clk 0:00:58]} 22. Qxa7 {[%clk 0:01:20.2]}
22... Ra8 {[%clk 0:00:58]} 23. Qb7 {[%clk 0:01:20.4]} 23... Bxa3 {[%clk
0:00:50]} 24. c6 {[%clk 0:01:12.4]} 24... Bd6 {[%clk 0:00:49.4]} 25. Rd2 {[%clk
0:01:04]} 25... Qf6 {[%clk 0:00:48.3]} 26. Be2 {[%clk 0:00:34]} 26... Ra3 {[%clk
0:00:40.7]} 27. g3 {[%clk 0:00:31.2]} 27... Rfa8 {[%clk 0:00:38.8]} 28. Rbd1
{[%clk 0:00:30]} 28... Kg7 {[%clk 0:00:38.4]} 29. Kg2 {[%clk 0:00:29.8]} 29...
h5 {[%clk 0:00:38.3]} 30. h4 {[%clk 0:00:29]} 30... Qe5 {[%clk 0:00:38.8]} 31.
Bf1 {[%clk 0:00:20]} 31... R8a4 {[%clk 0:00:36.3]} 32. Qb2 {[%clk 0:00:16.6]}
32... Qxb2 {[%clk 0:00:23.5]} 33. Rxb2 {[%clk 0:00:17.5]} 33... Rc3 {[%clk
0:00:24.1]} 34. Bb5 {[%clk 0:00:16.6]} 34... Ra5 {[%clk 0:00:22.8]} 35. Rdb1
{[%clk 0:00:16.4]} 35... Rc5 {[%clk 0:00:22.8]} 36. Kf3 {[%clk 0:00:15.8]} 36...
Kf6 {[%clk 0:00:23.5]} 37. Ke2 {[%clk 0:00:15.8]} 37... Be5 {[%clk 0:00:23.2]}
38. Rb3 {[%clk 0:00:14.9]} 38... Ra2+ {[%clk 0:00:23.7]} 39. Kf3 {[%clk
0:00:14.9]} 39... Rcc2 {[%clk 0:00:24.4]} 40. Rf1 {[%clk 0:00:13]} 40... Ke7
{[%clk 0:00:24.8]} 41. Bd3 {[%clk 0:00:12]} 41... Rxc6 {[%clk 0:00:24]} 42. Rb8
{[%clk 0:00:10.4]} 42... Ra3 {[%clk 0:00:21.5]} 43. Be2 {[%clk 0:00:10.3]} 43...
Bd6 {[%clk 0:00:18.7]} 44. Kg2 {[%clk 0:00:09.3]} 44... Rc2 {[%clk 0:00:18.8]}
45. Bd3 {[%clk 0:00:09]} 45... Rxd3 {[%clk 0:00:18.5]} 0-1

[Event "Late-Titled-Tuesday-Blitz-July-09-2024"]
[Site "Chess.com"]
[Date "2024.07.09"]
[Round "3"]
[White "JunjiCol"]
[Black "Boundless_Strike"]
[Result "1/2-1/2"]
[WhiteElo "2435"]
[BlackElo "2799"]
[TimeControl "180+1"]
[EndTime "14:28:31 PDT"]
[Termination "Game drawn - insufficient material"]

1. e4 {[%clk 0:03:00.9]} 1... e5 {[%clk 0:02:56.6]} 2. Bc4 {[%clk 0:02:58.8]}
2... Nf6 {[%clk 0:02:55.3]} 3. d4 {[%clk 0:02:58.6]} 3... d5 {[%clk 0:02:45.7]}
4. dxe5 {[%clk 0:02:57.2]} 4... dxc4 {[%clk 0:02:36.9]} 5. Qxd8+ {[%clk
0:02:58]} 5... Kxd8 {[%clk 0:02:37.2]} 6. exf6 {[%clk 0:02:58.9]} 6... gxf6
{[%clk 0:02:34.3]} 7. Bf4 {[%clk 0:02:57.3]} 7... Be6 {[%clk 0:02:29.1]} 8. Nc3
{[%clk 0:02:54.8]} 8... c6 {[%clk 0:02:19.2]} 9. O-O-O+ {[%clk 0:02:52.2]} 9...
Kc8 {[%clk 0:02:18.6]} 10. Nf3 {[%clk 0:02:45.5]} 10... Nd7 {[%clk 0:02:15.4]}
11. Rhe1 {[%clk 0:02:36.6]} 11... Rg8 {[%clk 0:02:12.9]} 12. Bg3 {[%clk
0:02:35.6]} 12... Bb4 {[%clk 0:01:37.9]} 13. Nd4 {[%clk 0:02:27.8]} 13... Bxc3
{[%clk 0:01:35.4]} 14. bxc3 {[%clk 0:02:28.7]} 14... Re8 {[%clk 0:01:23.7]} 15.
h3 {[%clk 0:02:23]} 15... a5 {[%clk 0:01:19.5]} 16. f4 {[%clk 0:02:17.2]} 16...
Nc5 {[%clk 0:01:06.5]} 17. f5 {[%clk 0:02:06.8]} 17... Bd7 {[%clk 0:01:05.4]}
18. e5 {[%clk 0:01:55.3]} 18... fxe5 {[%clk 0:01:03.7]} 19. Bxe5 {[%clk
0:01:56.2]} 19... b5 {[%clk 0:00:55.2]} 20. Re3 {[%clk 0:01:49.5]} 20... f6
{[%clk 0:00:31.7]} 21. Bf4 {[%clk 0:01:44.4]} 21... Rxe3 {[%clk 0:00:32.1]} 22.
Bxe3 {[%clk 0:01:44.3]} 22... Ne4 {[%clk 0:00:32.7]} 23. Re1 {[%clk 0:01:42.6]}
23... Nxc3 {[%clk 0:00:31.1]} 24. Bh6 {[%clk 0:01:36.8]} 24... Nd5 {[%clk
0:00:20.1]} 25. g4 {[%clk 0:01:36.2]} 25... Kc7 {[%clk 0:00:19.7]} 26. h4 {[%clk
0:01:34.9]} 26... Re8 {[%clk 0:00:17.1]} 27. Rxe8 {[%clk 0:01:31.5]} 27... Bxe8
{[%clk 0:00:18]} 28. g5 {[%clk 0:01:31.7]} 28... Kd6 {[%clk 0:00:18.3]} 29. Bg7
{[%clk 0:01:29.8]} 29... Ke5 {[%clk 0:00:16.1]} 30. gxf6 {[%clk 0:01:21.2]}
30... Bf7 {[%clk 0:00:15.3]} 31. Ne6 {[%clk 0:01:19.8]} 31... Kxf5 {[%clk
0:00:12.7]} 32. Nd8 {[%clk 0:01:19.9]} 32... Bh5 {[%clk 0:00:08.9]} 33. Nxc6
{[%clk 0:01:17.3]} 33... Nxf6 {[%clk 0:00:08.1]} 34. Nd4+ {[%clk 0:01:13.2]}
34... Kg6 {[%clk 0:00:07.7]} 35. Bh8 {[%clk 0:01:06.2]} 35... b4 {[%clk
0:00:05.2]} 36. Nc6 {[%clk 0:01:06.4]} 36... Nd5 {[%clk 0:00:05.1]} 37. Nxa5
{[%clk 0:01:06.3]} 37... Kf5 {[%clk 0:00:05.8]} 38. Nxc4 {[%clk 0:01:06]} 38...
Kg4 {[%clk 0:00:06.5]} 39. a4 {[%clk 0:00:59.1]} 39... bxa3 {[%clk 0:00:06.3]}
40. Nxa3 {[%clk 0:00:59.1]} 40... Kxh4 {[%clk 0:00:07]} 41. c4 {[%clk
0:00:59.6]} 41... Nb4 {[%clk 0:00:06.8]} 42. Nb5 {[%clk 0:00:55.8]} 42... Bf3
{[%clk 0:00:06.9]} 43. Nd4 {[%clk 0:00:55.7]} 43... Kg4 {[%clk 0:00:06.5]} 44.
Bf6 {[%clk 0:00:53.1]} 44... h5 {[%clk 0:00:06.5]} 45. Nxf3 {[%clk 0:00:52.3]}
45... Kxf3 {[%clk 0:00:06.8]} 46. Kb2 {[%clk 0:00:52.3]} 46... Ke4 {[%clk
0:00:06.6]} 47. Kc3 {[%clk 0:00:52.1]} 47... Nc6 {[%clk 0:00:07]} 48. Bh4 {[%clk
0:00:50.8]} 48... Kf4 {[%clk 0:00:06.8]} 49. c5 {[%clk 0:00:49.5]} 49... Kg4
{[%clk 0:00:06.7]} 50. Be1 {[%clk 0:00:48.8]} 50... h4 {[%clk 0:00:07.3]} 51.
Bxh4 {[%clk 0:00:48.1]} 51... Kxh4 {[%clk 0:00:08.2]} 52. Kc4 {[%clk 0:00:48.8]}
52... Kg4 {[%clk 0:00:08.8]} 53. Kd5 {[%clk 0:00:49]} 53... Nb4+ {[%clk
0:00:09]} 54. Kd6 {[%clk 0:00:49.1]} 54... Kf4 {[%clk 0:00:09]} 55. c6 {[%clk
0:00:49.2]} 55... Nxc6 {[%clk 0:00:09.3]} 1/2-1/2

[Event "Late-Titled-Tuesday-Blitz-July-09-2024"]
[Site "Chess.com"]
[Date "2024.07.09"]
[Round "3"]
[White "rasmussvane"]
[Black "Bykov_Egor"]
[Result "1-0"]
[WhiteElo "2922"]
[BlackElo "2688"]
[TimeControl "180+1"]
[EndTime "14:28:32 PDT"]
[Termination "rasmussvane won by resignation"]

1. Nf3 {[%clk 0:02:58.5]} 1... Nf6 {[%clk 0:03:00.5]} 2. g3 {[%clk 0:02:58.8]}
2... d5 {[%clk 0:03:00.4]} 3. Bg2 {[%clk 0:02:59.2]} 3... c6 {[%clk 0:03:00.2]}
4. O-O {[%clk 0:02:59.8]} 4... Bg4 {[%clk 0:02:58.9]} 5. h3 {[%clk 0:03:00]}
5... Bh5 {[%clk 0:02:58.4]} 6. d4 {[%clk 0:02:59.4]} 6... Nbd7 {[%clk 0:02:58]}
7. c4 {[%clk 0:02:59.6]} 7... e6 {[%clk 0:02:58.4]} 8. cxd5 {[%clk 0:02:59]}
8... cxd5 {[%clk 0:02:49.6]} 9. Qb3 {[%clk 0:02:55.2]} 9... Qb6 {[%clk
0:02:47.9]} 10. Nc3 {[%clk 0:02:55.1]} 10... Be7 {[%clk 0:02:32.8]} 11. g4
{[%clk 0:02:52.1]} 11... Bg6 {[%clk 0:02:32.1]} 12. Ne5 {[%clk 0:02:41.5]} 12...
Qxd4 {[%clk 0:01:45.1]} 13. Nxd7 {[%clk 0:02:27]} 13... Nxd7 {[%clk 0:01:46]}
14. Qxb7 {[%clk 0:02:26.1]} 14... Rb8 {[%clk 0:01:43.4]} 15. Qc6 {[%clk
0:02:25.4]} 15... Qc5 {[%clk 0:01:37]} 16. Qa4 {[%clk 0:02:15.9]} 16... Qb4
{[%clk 0:01:25]} 17. Qxa7 {[%clk 0:02:06.2]} 17... Bc5 {[%clk 0:01:17]} 18. Qa4
{[%clk 0:02:06.2]} 18... Qb7 {[%clk 0:00:52.8]} 19. Bf4 {[%clk 0:02:00.3]} 19...
Ra8 {[%clk 0:00:49.5]} 20. Qb5 {[%clk 0:01:58.1]} 20... Bb6 {[%clk 0:00:46]} 21.
e3 {[%clk 0:01:35.8]} 21... O-O {[%clk 0:00:40.1]} 22. Rfd1 {[%clk 0:01:14.6]}
22... Ra5 {[%clk 0:00:37.2]} 23. Qe2 {[%clk 0:01:04.5]} 23... Bc5 {[%clk
0:00:30.3]} 24. a3 {[%clk 0:00:50.2]} 24... Qb3 {[%clk 0:00:30.2]} 25. Nxd5
{[%clk 0:00:42.5]} 25... exd5 {[%clk 0:00:23.2]} 26. Bxd5 {[%clk 0:00:43.4]}
26... Qc2 {[%clk 0:00:18.3]} 27. Qxc2 {[%clk 0:00:39.2]} 27... Bxc2 {[%clk
0:00:19.2]} 28. Rdc1 {[%clk 0:00:39.7]} 28... Bg6 {[%clk 0:00:13.2]} 29. Bc6
{[%clk 0:00:28]} 29... Nb8 {[%clk 0:00:05.3]} 30. Bxb8 {[%clk 0:00:27.7]} 30...
Rxb8 {[%clk 0:00:06.2]} 31. b4 {[%clk 0:00:28.1]} 31... Bxb4 {[%clk 0:00:02.2]}
32. axb4 {[%clk 0:00:29]} 32... Rxa1 {[%clk 0:00:01.8]} 33. Rxa1 {[%clk
0:00:29.9]} 33... h5 {[%clk 0:00:02.1]} 34. Ra8 {[%clk 0:00:23.7]} 34... Rxa8
{[%clk 0:00:01.5]} 35. Bxa8 {[%clk 0:00:24.6]} 35... hxg4 {[%clk 0:00:01.9]} 36.
hxg4 {[%clk 0:00:25.5]} 36... Kf8 {[%clk 0:00:01.4]} 37. b5 {[%clk 0:00:21.7]}
37... Ke7 {[%clk 0:00:02]} 38. b6 {[%clk 0:00:22]} 38... Kd6 {[%clk 0:00:02.7]}
39. f4 {[%clk 0:00:20]} 39... Bd3 {[%clk 0:00:02.6]} 40. Kf2 {[%clk 0:00:20.3]}
40... Ba6 {[%clk 0:00:01.9]} 41. e4 {[%clk 0:00:18.3]} 41... f6 {[%clk
0:00:02.2]} 42. Ke3 {[%clk 0:00:18.4]} 42... g5 {[%clk 0:00:02.3]} 43. fxg5
{[%clk 0:00:18.8]} 43... fxg5 {[%clk 0:00:02.6]} 44. Kd4 {[%clk 0:00:19.5]}
44... Bc8 {[%clk 0:00:03.2]} 45. e5+ {[%clk 0:00:19.6]} 1-0

[Event "Late-Titled-Tuesday-Blitz-July-09-2024"]
[Site "Chess.com"]
[Date "2024.07.09"]
[Round "3"]
[White "chipmunknau"]
[Black "dropstoneDP"]
[Result "0-1"]
[WhiteElo "2703"]
[BlackElo "3030"]
[TimeControl "180+1"]
[EndTime "14:28:33 PDT"]
[Termination "dropstoneDP won by resignation"]

1. d4 {[%clk 0:02:50.9]} 1... d5 {[%clk 0:02:58.8]} 2. c4 {[%clk 0:02:50.8]}
2... dxc4 {[%clk 0:02:59.7]} 3. Nf3 {[%clk 0:02:50.9]} 3... Nf6 {[%clk
0:02:59.8]} 4. e3 {[%clk 0:02:51.4]} 4... e6 {[%clk 0:02:58]} 5. Bxc4 {[%clk
0:02:51.5]} 5... a6 {[%clk 0:02:56.5]} 6. O-O {[%clk 0:02:51.8]} 6... Be7 {[%clk
0:02:57]} 7. Nc3 {[%clk 0:02:51.7]} 7... b5 {[%clk 0:02:56]} 8. Bd3 {[%clk
0:02:50.9]} 8... Bb7 {[%clk 0:02:56.5]} 9. Qe2 {[%clk 0:02:47.2]} 9... Nbd7
{[%clk 0:02:50.3]} 10. Rd1 {[%clk 0:02:36.8]} 10... c5 {[%clk 0:02:37.8]} 11.
dxc5 {[%clk 0:02:34.9]} 11... Bxc5 {[%clk 0:02:38.7]} 12. e4 {[%clk 0:02:32]}
12... Ng4 {[%clk 0:02:36.8]} 13. Rf1 {[%clk 0:02:12.3]} 13... Nde5 {[%clk
0:02:37.1]} 14. Nxe5 {[%clk 0:02:08.9]} 14... Nxe5 {[%clk 0:02:38]} 15. Bxb5+
{[%clk 0:02:01.6]} 15... Kf8 {[%clk 0:02:37.2]} 16. Ba4 {[%clk 0:01:51.3]} 16...
Qd3 {[%clk 0:02:22.8]} 17. Qh5 {[%clk 0:01:47.3]} 17... Bd4 {[%clk 0:01:20.8]}
18. Rd1 {[%clk 0:01:37.4]} 18... Qc4 {[%clk 0:01:21.2]} 19. Rxd4 {[%clk
0:01:12]} 19... Qxd4 {[%clk 0:01:22.1]} 20. Be3 {[%clk 0:01:10.8]} 20... Qd6
{[%clk 0:01:22.3]} 21. Rd1 {[%clk 0:01:10.8]} 21... Qc7 {[%clk 0:01:14.9]} 22.
f4 {[%clk 0:01:04.2]} 22... Nc6 {[%clk 0:01:09.9]} 23. Rd6 {[%clk 0:00:51.1]}
23... Rd8 {[%clk 0:00:38.1]} 24. e5 {[%clk 0:00:42.3]} 24... h6 {[%clk
0:00:29.6]} 25. Bc5 {[%clk 0:00:24.3]} 25... Kg8 {[%clk 0:00:29]} 26. Qd1 {[%clk
0:00:16]} 26... Rxd6 {[%clk 0:00:24.7]} 27. exd6 {[%clk 0:00:12.8]} 27... Qa5
{[%clk 0:00:25.2]} 28. Be3 {[%clk 0:00:08.6]} 28... g5 {[%clk 0:00:22.5]} 29. d7
{[%clk 0:00:07.5]} 29... Kg7 {[%clk 0:00:20.2]} 30. Bxc6 {[%clk 0:00:08]} 30...
Bxc6 {[%clk 0:00:20.6]} 31. Bd4+ {[%clk 0:00:08.5]} 31... f6 {[%clk 0:00:21.1]}
32. Qe1 {[%clk 0:00:05.8]} 32... Qf5 {[%clk 0:00:13.5]} 33. fxg5 {[%clk
0:00:05.4]} 33... hxg5 {[%clk 0:00:14.1]} 34. Qg3 {[%clk 0:00:03.8]} 34... e5
{[%clk 0:00:12.2]} 35. Be3 {[%clk 0:00:02.6]} 35... Bxd7 {[%clk 0:00:12.4]} 36.
h3 {[%clk 0:00:03.3]} 36... Kg6 {[%clk 0:00:12.1]} 37. Kh2 {[%clk 0:00:03.2]}
37... Qc2 {[%clk 0:00:11]} 38. Qf3 {[%clk 0:00:02.6]} 38... Rxh3+ {[%clk
0:00:09.8]} 39. Qxh3 {[%clk 0:00:01.9]} 39... Bxh3 {[%clk 0:00:09.8]} 40. Kxh3
{[%clk 0:00:02.8]} 40... Qd3 {[%clk 0:00:09.9]} 0-1

[Event "Late-Titled-Tuesday-Blitz-July-09-2024"]
[Site "Chess.com"]
[Date "2024.07.09"]
[Round "3"]
[White "SantoBlue"]
[Black "carokannlover213"]
[Result "1/2-1/2"]
[WhiteElo "2991"]
[BlackElo "2714"]
[TimeControl "180+1"]
[EndTime "14:28:40 PDT"]
[Termination "Game drawn - insufficient material"]

1. e4 {[%clk 0:03:00.9]} 1... g6 {[%clk 0:02:55.9]} 2. d4 {[%clk 0:02:56.8]}
2... Bg7 {[%clk 0:02:56.8]} 3. Nf3 {[%clk 0:02:57.1]} 3... c6 {[%clk 0:02:57.1]}
4. Nc3 {[%clk 0:02:54.1]} 4... d5 {[%clk 0:02:57.5]} 5. h3 {[%clk 0:02:54.6]}
5... dxe4 {[%clk 0:02:58]} 6. Nxe4 {[%clk 0:02:55.5]} 6... Nf6 {[%clk
0:02:58.8]} 7. Bd3 {[%clk 0:02:56.2]} 7... O-O {[%clk 0:02:58.3]} 8. O-O {[%clk
0:02:54.4]} 8... Nbd7 {[%clk 0:02:56.3]} 9. c3 {[%clk 0:02:54.4]} 9... Nxe4
{[%clk 0:02:56]} 10. Bxe4 {[%clk 0:02:55.3]} 10... e5 {[%clk 0:02:56.6]} 11. Be3
{[%clk 0:02:52.3]} 11... exd4 {[%clk 0:02:55.1]} 12. Bxd4 {[%clk 0:02:51.7]}
12... Bxd4 {[%clk 0:02:54.5]} 13. Nxd4 {[%clk 0:02:49.2]} 13... Nc5 {[%clk
0:02:54.8]} 14. Bc2 {[%clk 0:02:49.3]} 14... Ne6 {[%clk 0:02:54.4]} 15. Nf3
{[%clk 0:02:45.6]} 15... Qf6 {[%clk 0:02:51.2]} 16. Re1 {[%clk 0:02:41.1]} 16...
Kg7 {[%clk 0:02:50.4]} 17. Qd2 {[%clk 0:02:39.7]} 17... Rd8 {[%clk 0:02:49.9]}
18. Qe3 {[%clk 0:02:39.8]} 18... Nf4 {[%clk 0:02:24.8]} 19. Kh2 {[%clk
0:02:31.2]} 19... Nd5 {[%clk 0:02:19.2]} 20. Qe5 {[%clk 0:02:24.1]} 20... Be6
{[%clk 0:02:15.7]} 21. Nd4 {[%clk 0:02:21.6]} 21... Bd7 {[%clk 0:01:58]} 22. Bb3
{[%clk 0:02:19.9]} 22... Re8 {[%clk 0:01:48.6]} 23. Qxf6+ {[%clk 0:02:08.7]}
23... Nxf6 {[%clk 0:01:49.5]} 24. Rad1 {[%clk 0:01:58.1]} 24... Rxe1 {[%clk
0:01:47.7]} 25. Rxe1 {[%clk 0:01:58.5]} 25... Re8 {[%clk 0:01:48.6]} 26. Rd1
{[%clk 0:01:55.8]} 26... c5 {[%clk 0:01:39]} 27. Nf3 {[%clk 0:01:56]} 27... h6
{[%clk 0:01:23.2]} 28. Nd2 {[%clk 0:01:53.6]} 28... Bc6 {[%clk 0:01:19]} 29. Kg1
{[%clk 0:01:53.6]} 29... Rd8 {[%clk 0:01:15.7]} 30. f3 {[%clk 0:01:49]} 30...
Nh5 {[%clk 0:00:57.1]} 31. Nc4 {[%clk 0:01:37.8]} 31... Rxd1+ {[%clk 0:00:56.1]}
32. Bxd1 {[%clk 0:01:38.7]} 32... Bd5 {[%clk 0:00:57]} 33. Bb3 {[%clk
0:01:34.9]} 33... Nf4 {[%clk 0:00:41.1]} 34. Nd6 {[%clk 0:01:35.2]} 34... Bxb3
{[%clk 0:00:36.2]} 35. axb3 {[%clk 0:01:36.1]} 35... b6 {[%clk 0:00:35.4]} 36.
Nc8 {[%clk 0:01:36.3]} 36... Nd3 {[%clk 0:00:35.1]} 37. Nxa7 {[%clk 0:01:36.1]}
37... Nxb2 {[%clk 0:00:34.9]} 38. Nc8 {[%clk 0:01:35.9]} 38... b5 {[%clk
0:00:34.6]} 39. Nd6 {[%clk 0:01:35.2]} 39... b4 {[%clk 0:00:29.7]} 40. cxb4
{[%clk 0:01:31.5]} 40... cxb4 {[%clk 0:00:29.3]} 41. Kf1 {[%clk 0:01:25.4]}
41... Nd3 {[%clk 0:00:27.2]} 42. Nc4 {[%clk 0:01:25.5]} 42... Nc1 {[%clk
0:00:25.1]} 43. Na5 {[%clk 0:01:20.3]} 43... Kf6 {[%clk 0:00:24.7]} 44. Ke1
{[%clk 0:01:20.9]} 44... Nd3+ {[%clk 0:00:23.5]} 45. Ke2 {[%clk 0:01:21.5]}
45... Nf4+ {[%clk 0:00:23.7]} 46. Kf2 {[%clk 0:01:20.6]} 46... Ke6 {[%clk
0:00:20]} 47. Nc6 {[%clk 0:01:21]} 47... Nd3+ {[%clk 0:00:16.6]} 48. Ke3 {[%clk
0:01:21.5]} 48... Nc5 {[%clk 0:00:17.1]} 49. Nd4+ {[%clk 0:01:11.8]} 49... Kd5
{[%clk 0:00:17]} 50. h4 {[%clk 0:01:09.9]} 50... f5 {[%clk 0:00:16.8]} 51. g3
{[%clk 0:01:10.5]} 51... g5 {[%clk 0:00:14.7]} 52. hxg5 {[%clk 0:01:10.5]} 52...
hxg5 {[%clk 0:00:15.6]} 53. f4 {[%clk 0:01:08.6]} 53... gxf4+ {[%clk 0:00:15.8]}
54. gxf4 {[%clk 0:01:09.5]} 54... Kd6 {[%clk 0:00:05.5]} 55. Nxf5+ {[%clk
0:01:08.1]} 55... Ke6 {[%clk 0:00:05.3]} 56. Nd4+ {[%clk 0:01:06.5]} 56... Kf6
{[%clk 0:00:05.8]} 57. Kf3 {[%clk 0:01:02.3]} 57... Kg6 {[%clk 0:00:05.7]} 58.
Kg4 {[%clk 0:01:01.8]} 58... Kf6 {[%clk 0:00:06.3]} 59. Kf3 {[%clk 0:01:01.5]}
59... Kg6 {[%clk 0:00:06.4]} 60. Kg3 {[%clk 0:01:02]} 60... Kg7 {[%clk
0:00:04.6]} 61. Kg4 {[%clk 0:01:02.7]} 61... Kg6 {[%clk 0:00:04.5]} 62. f5+
{[%clk 0:01:02.8]} 62... Kf6 {[%clk 0:00:05]} 63. Kf4 {[%clk 0:01:03.5]} 63...
Nd3+ {[%clk 0:00:05]} 64. Ke4 {[%clk 0:01:04.2]} 64... Nc5+ {[%clk 0:00:05.6]}
65. Kd5 {[%clk 0:01:04.9]} 65... Nxb3 {[%clk 0:00:05.7]} 66. Nxb3 {[%clk
0:01:03.3]} 66... Kxf5 {[%clk 0:00:06.6]} 67. Kc4 {[%clk 0:01:04.1]} 67... Kf6
{[%clk 0:00:05.3]} 68. Kxb4 {[%clk 0:01:05]} 1/2-1/2

[Event "Late-Titled-Tuesday-Blitz-July-09-2024"]
[Site "Chess.com"]
[Date "2024.07.09"]
[Round "3"]
[White "fmshawnrl123"]
[Black "VirtualCoach"]
[Result "1-0"]
[WhiteElo "2858"]
[BlackElo "2315"]
[TimeControl "180+1"]
[EndTime "14:28:41 PDT"]
[Termination "fmshawnrl123 won by checkmate"]

1. e4 {[%clk 0:03:00.9]} 1... c5 {[%clk 0:02:59.4]} 2. Nf3 {[%clk 0:02:59.9]}
2... d6 {[%clk 0:02:57.8]} 3. Nc3 {[%clk 0:02:59]} 3... Nf6 {[%clk 0:02:55.3]}
4. Bc4 {[%clk 0:02:58.3]} 4... e6 {[%clk 0:02:54]} 5. d3 {[%clk 0:02:57.7]} 5...
Be7 {[%clk 0:02:52.7]} 6. O-O {[%clk 0:02:58.3]} 6... O-O {[%clk 0:02:53.2]} 7.
Re1 {[%clk 0:02:56.9]} 7... d5 {[%clk 0:02:48.8]} 8. exd5 {[%clk 0:02:55.3]}
8... exd5 {[%clk 0:02:49.7]} 9. Nxd5 {[%clk 0:02:55.1]} 9... Nxd5 {[%clk
0:02:45.9]} 10. Bxd5 {[%clk 0:02:55.7]} 10... Qxd5 {[%clk 0:02:45.7]} 11. Rxe7
{[%clk 0:02:56.3]} 11... Bg4 {[%clk 0:02:45.1]} 12. Re4 {[%clk 0:02:53.6]} 12...
f5 {[%clk 0:02:42.7]} 13. Re1 {[%clk 0:02:48]} 13... Nc6 {[%clk 0:02:40.5]} 14.
c4 {[%clk 0:02:32.2]} 14... Qd6 {[%clk 0:02:34.7]} 15. h3 {[%clk 0:02:28.2]}
15... Bh5 {[%clk 0:02:34.5]} 16. Be3 {[%clk 0:02:06.7]} 16... f4 {[%clk
0:02:30.1]} 17. Bd2 {[%clk 0:02:02.3]} 17... Qxd3 {[%clk 0:02:24.4]} 18. Bc3
{[%clk 0:02:00.3]} 18... Qxd1 {[%clk 0:02:24]} 19. Raxd1 {[%clk 0:02:01.2]}
19... Bxf3 {[%clk 0:02:23.2]} 20. gxf3 {[%clk 0:02:02.1]} 20... Rad8 {[%clk
0:02:22.8]} 21. Rd5 {[%clk 0:01:54.4]} 21... b6 {[%clk 0:02:12.5]} 22. Kg2
{[%clk 0:01:49.2]} 22... Rfe8 {[%clk 0:02:04.2]} 23. Rxe8+ {[%clk 0:01:39.1]}
23... Rxe8 {[%clk 0:02:04.2]} 24. Rd6 {[%clk 0:01:40]} 24... Ne7 {[%clk
0:01:48.1]} 25. Rd7 {[%clk 0:01:36.8]} 25... Nf5 {[%clk 0:01:48.3]} 26. Rxa7
{[%clk 0:01:34.2]} 26... Nh4+ {[%clk 0:01:45]} 27. Kf1 {[%clk 0:01:33.5]} 27...
Nxf3 {[%clk 0:01:36.9]} 28. Rxg7+ {[%clk 0:01:32.6]} 28... Kf8 {[%clk
0:01:37.4]} 29. Rxh7 {[%clk 0:01:30.6]} 29... Re6 {[%clk 0:01:29.8]} 30. a4
{[%clk 0:01:23.1]} 30... Ng5 {[%clk 0:01:25.8]} 31. Rh4 {[%clk 0:01:17.7]} 31...
f3 {[%clk 0:01:17.7]} 32. Rf4+ {[%clk 0:01:17.1]} 32... Ke8 {[%clk 0:01:17]} 33.
h4 {[%clk 0:01:17.7]} 33... Re4 {[%clk 0:01:03.4]} 34. Rxe4+ {[%clk 0:01:08.5]}
34... Nxe4 {[%clk 0:01:03.1]} 35. a5 {[%clk 0:00:54.2]} 35... bxa5 {[%clk
0:01:02.9]} 36. Bxa5 {[%clk 0:00:55.1]} 36... Kf7 {[%clk 0:01:03.3]} 37. Kg1
{[%clk 0:00:38.1]} 37... Kg6 {[%clk 0:01:00.8]} 38. b4 {[%clk 0:00:33.7]} 38...
Kh5 {[%clk 0:00:44.3]} 39. bxc5 {[%clk 0:00:30.6]} 39... Nxc5 {[%clk 0:00:42.5]}
40. Bd8 {[%clk 0:00:30.2]} 40... Ne6 {[%clk 0:00:40.5]} 41. Be7 {[%clk
0:00:30.1]} 41... Nc7 {[%clk 0:00:38.5]} 42. Kh2 {[%clk 0:00:28.3]} 42... Kg4
{[%clk 0:00:38.9]} 43. Bd6 {[%clk 0:00:27.1]} 43... Ne6 {[%clk 0:00:38.6]} 44.
Be7 {[%clk 0:00:26.5]} 44... Ng7 {[%clk 0:00:32.6]} 45. c5 {[%clk 0:00:26.5]}
45... Nf5 {[%clk 0:00:33.1]} 46. Bf6 {[%clk 0:00:24.8]} 46... Nh6 {[%clk
0:00:21.9]} 47. c6 {[%clk 0:00:24.5]} 47... Nf7 {[%clk 0:00:22.4]} 48. Be7
{[%clk 0:00:22.8]} 48... Kh5 {[%clk 0:00:06.7]} 49. c7 {[%clk 0:00:22.3]} 49...
Nd6 {[%clk 0:00:06.2]} 50. Bxd6 {[%clk 0:00:21.5]} 50... Kg4 {[%clk 0:00:07.1]}
51. c8=Q+ {[%clk 0:00:21.4]} 51... Kh5 {[%clk 0:00:07.7]} 52. Qf5+ {[%clk
0:00:21.3]} 52... Kh6 {[%clk 0:00:08.6]} 53. Bf8# {[%clk 0:00:21.6]} 1-0